bitfinex/quotes_BTCUSD_20230907
["timestamp","ask_amount","ask_price","bid_price","bid_amount"]
[1694052054493,0.04542832,25771.0,25770.0,1.92287359]
[1694052057323,0.13847531,25771.0,25770.0,1.92287359]
[1694052057512,0.04542832,25771.0,25770.0,1.92287359]
[1694052060644,0.04542832,25771.0,25770.0,1.92689159]
[1694052062705,0.04542832,25771.0,25770.0,2.11689159]
[1694052068490,0.04542832,25771.0,25770.0,2.11689159]
[1694052074642,0.04542832,25771.0,25770.0,2.09689159]
[1694052087327,0.04542832,25771.0,25770.0,1.90689159]
[1694052091154,0.13847531,25771.0,25770.0,1.90689159]
[1694052092128,0.04542832,25771.0,25770.0,1.90689159]
[1694052092696,0.13847531,25771.0,25770.0,1.90689159]
[1694052093540,0.13847531,25771.0,25770.0,2.09689159]
[1694052102264,0.04542832,25771.0,25770.0,2.09689159]
[1694052102471,0.13860967,25771.0,25770.0,2.09689159]
[1694052108675,0.04542832,25771.0,25770.0,2.87298759]
[1694052108884,0.04542832,25771.0,25770.0,3.60865127]
[1694052109319,0.002,25771.0,25770.0,3.60865127]
[1694052109521,0.002,25771.0,25770.0,3.70189627]
[1694052109861,0.002,25771.0,25770.0,3.60865127]
[1694052110299,0.002,25771.0,25770.0,3.72189627]
[1694052111339,0.002,25771.0,25770.0,3.62865127]
[1694052122711,0.002,25771.0,25770.0,3.64054952]
[1694052138703,0.002,25771.0,25770.0,3.64054952]
[1694052139470,0.002,25771.0,25770.0,3.58054952]
[1694052139691,0.002,25771.0,25770.0,4.69941359]
[1694052139890,0.002,25771.0,25770.0,4.67941359]
[1694052141429,0.002,25771.0,25770.0,3.56054952]
[1694052143086,0.002,25771.0,25770.0,4.67940693]
[1694052144236,0.002,25771.0,25770.0,3.56054952]
[1694052147768,0.002,25771.0,25770.0,4.67941577]
[1694052150607,0.002,25771.0,25770.0,5.49877268]
[1694052150837,0.1564,25776.0,25775.0,0.04]
[1694052151068,0.2359,25777.0,25776.0,0.1206]
[1694052151345,0.1564,25778.0,25776.0,2.568927]
[1694052151591,0.1564,25778.0,25777.0,0.32348466]
[1694052151835,0.1564,25778.0,25777.0,2.65113966]
[1694052152034,0.1564,25778.0,25777.0,2.94126261]
[1694052152262,0.1564,25778.0,25777.0,2.98126261]
[1694052153443,0.1564,25778.0,25777.0,2.98426261]
[1694052153676,0.19903353,25778.0,25777.0,2.98426261]
[1694052153907,0.19903353,25778.0,25777.0,2.98726261]
[1694052154167,0.19903353,25778.0,25777.0,2.78437795]
[1694052154395,0.1564,25778.0,25777.0,2.78437795]
[1694052156256,0.1564,25778.0,25777.0,3.17102322]
[1694052157494,0.1564,25778.0,25777.0,3.57912322]
[1694052163503,0.1564,25778.0,25777.0,3.76912322]
[1694052164829,0.1564,25778.0,25777.0,3.97498925]
[1694052166928,0.1564,25778.0,25777.0,3.76912322]
[1694052170234,0.1564,25778.0,25777.0,4.002343]
[1694052170607,0.1564,25778.0,25777.0,3.71222005]
[1694052178358,0.1564,25778.0,25777.0,3.47900027]
[1694052179900,0.1564,25778.0,25777.0,3.68150431]
[1694052182916,0.19764462,25778.0,25777.0,3.68150431]
[1694052187337,0.19764462,25778.0,25777.0,3.56090431]
[1694052187535,0.19764462,25778.0,25777.0,3.68150431]
[1694052188276,0.19764462,25778.0,25777.0,1.35384931]
[1694052188478,0.19764462,25778.0,25777.0,3.68150431]
[1694052191617,0.19764462,25778.0,25777.0,3.27340431]
[1694052191817,0.19764462,25778.0,25777.0,2.88675904]
[1694052192049,0.19764462,25778.0,25777.0,2.11087404]
[1694052192281,0.21357739,25778.0,25777.0,0.196]
[1694052192499,1.89000873,25778.0,25777.0,0.196]
[1694052192717,2.54114239,25778.0,25777.0,0.196]
[1694052192940,2.52520962,25778.0,25777.0,0.196]
[1694052193382,2.61839097,25778.0,25777.0,0.196]
[1694052193595,2.61839097,25778.0,25777.0,0.193]
[1694052193803,2.63339097,25778.0,25777.0,0.194]
[1694052194228,2.63339097,25778.0,25777.0,0.191]
[1694052194229,2.67998164,25778.0,25777.0,0.191]
[1694052194706,2.70365586,25778.0,25777.0,0.192]
[1694052195829,2.72765586,25778.0,25777.0,0.194]
[1694052196272,2.91401856,25778.0,25777.0,0.194]
[1694052196526,2.72765586,25778.0,25777.0,0.194]
[1694052197294,1.95180086,25778.0,25777.0,0.194]
[1694052199234,2.04481602,25778.0,25777.0,0.194]
[1694052199841,1.905044,25778.0,25777.0,0.194]
[1694052202234,1.129189,25778.0,25777.0,0.194]
[1694052202910,1.26896102,25778.0,25777.0,0.194]
[1694052203343,1.17594586,25778.0,25777.0,0.194]
[1694052203561,1.26892837,25778.0,25777.0,0.194]
[1694052204364,1.17594586,25778.0,25777.0,0.194]
[1694052205378,1.26891752,25778.0,25777.0,0.194]
[1694052206369,1.26891256,25778.0,25777.0,0.194]
[1694052207335,1.26890932,25778.0,25777.0,0.194]
[1694052212957,1.1291373,25778.0,25777.0,0.194]
[1694052214809,0.3532823,25778.0,25777.0,0.194]
[1694052219978,0.49305432,25778.0,25777.0,0.194]
[1694052222060,0.3532823,25778.0,25777.0,0.194]
[1694052224398,0.49305432,25778.0,25777.0,0.194]
[1694052225065,0.3532823,25778.0,25777.0,0.194]
[1694052225283,0.49305432,25778.0,25777.0,0.194]
[1694052226424,0.40009086,25778.0,25777.0,0.194]
[1694052230241,0.58645356,25778.0,25777.0,0.194]
[1694052232524,0.44668154,25778.0,25777.0,0.194]
[1694052232868,0.58629686,25778.0,25777.0,0.194]
[1694052233107,0.44668154,25778.0,25777.0,0.194]
[1694052233579,1.60918181,25778.0,25777.0,0.194]
[1694052234621,2.38503681,25778.0,25777.0,0.194]
[1694052235250,2.61799019,25778.0,25777.0,0.194]
[1694052235857,2.60331597,25778.0,25777.0,0.194]
[1694052236339,2.41695327,25778.0,25777.0,0.194]
[1694052238522,2.18399989,25778.0,25777.0,0.194]
[1694052240243,2.57064516,25778.0,25777.0,0.194]
[1694052240823,3.55010016,25778.0,25777.0,0.194]
[1694052241057,3.94150796,25778.0,25777.0,0.194]
[1694052241257,3.93370796,25778.0,25777.0,0.194]
[1694052241470,3.27027489,25778.0,25777.0,0.194]
[1694052241678,3.24633489,25778.0,25777.0,0.192]
[1694052241893,3.24729489,25778.0,25777.0,0.192]
[1694052242101,3.26967489,25778.0,25777.0,0.194]
[1694052242302,3.24297489,25778.0,25777.0,0.192]
[1694052242480,3.52088227,25778.0,25777.0,0.192]
[1694052242695,3.52088227,25778.0,25777.0,0.194]
[1694052242696,3.54398227,25778.0,25777.0,0.194]
[1694052242897,3.54506227,25778.0,25777.0,0.194]
[1694052243098,3.54488227,25778.0,25777.0,0.194]
[1694052243299,3.24075489,25778.0,25777.0,0.192]
[1694052243507,3.23997489,25778.0,25777.0,0.191]
[1694052243709,3.26223489,25778.0,25777.0,0.193]
[1694052243879,3.5433255,25778.0,25777.0,0.193]
[1694052244080,3.5454255,25778.0,25777.0,0.193]
[1694052244305,3.5418855,25778.0,25777.0,0.193]
[1694052244503,3.5442855,25778.0,25777.0,0.193]
[1694052244713,3.5440455,25778.0,25777.0,0.193]
[1694052244915,3.5424855,25778.0,25777.0,0.193]
[1694052245276,3.5433855,25778.0,25777.0,0.193]
[1694052245481,3.5432655,25778.0,25777.0,0.193]
[1694052245666,3.5416455,25778.0,25777.0,0.193]
[1694052245891,3.5449455,25778.0,25777.0,0.193]
[1694052246269,3.5457255,25778.0,25777.0,0.193]
[1694052246478,3.5465055,25778.0,25777.0,0.193]
[1694052246778,3.5444655,25778.0,25777.0,0.193]
[1694052246976,3.5458455,25778.0,25777.0,0.193]
[1694052247199,3.5429655,25778.0,25777.0,0.193]
[1694052247408,3.5438055,25778.0,25777.0,0.193]
[1694052247583,3.5413455,25778.0,25777.0,0.193]
[1694052247812,3.5407455,25778.0,25777.0,0.193]
[1694052248134,3.5406255,25778.0,25777.0,0.193]
[1694052248331,3.5328855,25778.0,25777.0,0.193]
[1694052248528,3.5326455,25778.0,25777.0,0.193]
[1694052248750,3.5330055,25778.0,25777.0,0.193]
[1694052249159,3.5328855,25778.0,25777.0,0.193]
[1694052249405,3.5327055,25778.0,25777.0,0.193]
[1694052249638,3.5303055,25778.0,25777.0,0.193]
[1694052250118,3.5310255,25778.0,25777.0,0.193]
[1694052250350,3.5301255,25778.0,25777.0,0.193]
[1694052250571,3.5350455,25778.0,25777.0,0.193]
[1694052250779,3.5309655,25778.0,25777.0,0.193]
[1694052251197,3.5309055,25778.0,25777.0,0.193]
[1694052251369,3.4628655,25778.0,25777.0,0.193]
[1694052252226,3.46267275,25778.0,25777.0,0.193]
[1694052253301,0.59321062,25778.0,25777.0,0.193]
[1694052253628,0.57021062,25778.0,25777.0,0.193]
[1694052254249,1.34606562,25778.0,25777.0,0.193]
[1694052254667,1.33174489,25778.0,25777.0,0.193]
[1694052255294,2.10759989,25778.0,25777.0,0.193]
[1694052256131,2.1245335,25778.0,25777.0,0.193]
[1694052259118,2.88345489,25778.0,25777.0,0.193]
[1694052264644,3.27010016,25778.0,25777.0,0.193]
[1694052265940,2.88345489,25778.0,25777.0,0.193]
[1694052275045,2.88345489,25778.0,25777.0,0.2234615]
[1694052277157,2.89857911,25778.0,25777.0,0.2234615]
[1694052277913,2.88345489,25778.0,25777.0,0.2234615]
[1694052278811,2.90317309,25778.0,25777.0,0.2234615]
[1694052278989,2.88345489,25778.0,25777.0,0.2234615]
[1694052280390,2.88345489,25778.0,25777.0,0.193]
[1694052281378,3.16267275,25778.0,25777.0,0.193]
[1694052283887,3.16284382,25778.0,25777.0,0.193]
[1694052287863,2.88345489,25778.0,25777.0,0.193]
[1694052288121,3.16292041,25778.0,25777.0,0.193]
[1694052290023,3.14292041,25778.0,25777.0,0.193]
[1694052296838,3.16068701,25778.0,25777.0,0.193]
[1694052297827,3.14292041,25778.0,25777.0,0.193]
[1694052300438,3.15751234,25778.0,25777.0,0.193]
[1694052300950,3.14292041,25778.0,25777.0,0.193]
[1694052301156,3.0983638,25778.0,25777.0,0.193]
[1694052301330,3.08292041,25778.0,25777.0,0.193]
[1694052303052,3.09870359,25778.0,25777.0,0.193]
[1694052305948,3.09870359,25778.0,25777.0,0.003]
[1694052307620,3.08292041,25778.0,25777.0,0.003]
[1694052307859,3.08292041,25778.0,25777.0,0.193]
[1694052310467,3.10007187,25778.0,25777.0,0.193]
[1694052311320,1.65810608,25778.0,25777.0,0.193]
[1694052312048,2.43396108,25778.0,25777.0,0.193]
[1694052315467,2.41680962,25778.0,25777.0,0.193]
[1694052321267,2.69627514,25778.0,25777.0,0.193]
[1694052322867,2.69625624,25778.0,25777.0,0.193]
[1694052323272,3.08290151,25778.0,25777.0,0.193]
[1694052343762,3.39817768,25778.0,25777.0,0.193]
[1694052345336,3.20350151,25778.0,25777.0,0.193]
[1694052346005,2.92405489,25778.0,25777.0,0.193]
[1694052346467,2.80345489,25778.0,25777.0,0.193]
[1694052350356,3.08290788,25778.0,25777.0,0.193]
[1694052362810,3.04166326,25778.0,25777.0,0.193]
[1694052363019,3.20426736,25778.0,25777.0,0.193]
[1694052363461,2.92481437,25778.0,25777.0,0.193]
[1694052364267,3.20434981,25778.0,25777.0,0.193]
[1694052364485,2.92481437,25778.0,25777.0,0.193]
[1694052366883,3.2043697,25778.0,25777.0,0.193]
[1694052373153,3.30600574,25778.0,25777.0,0.193]
[1694052373330,3.30582574,25778.0,25777.0,0.193]
[1694052373536,3.30564574,25778.0,25777.0,0.193]
[1694052373742,3.30558574,25778.0,25777.0,0.193]
[1694052373950,3.30834574,25778.0,25777.0,0.193]
[1694052374149,3.30372574,25778.0,25777.0,0.193]
[1694052374345,3.30360574,25778.0,25777.0,0.193]
[1694052374554,3.30342574,25778.0,25777.0,0.193]
[1694052374871,3.30900574,25778.0,25777.0,0.193]
[1694052375074,3.30894574,25778.0,25777.0,0.193]
[1694052375279,3.30882574,25778.0,25777.0,0.193]
[1694052375479,3.30864574,25778.0,25777.0,0.193]
[1694052375712,3.30840574,25778.0,25777.0,0.193]
[1694052375916,3.30804574,25778.0,25777.0,0.193]
[1694052376135,3.30786574,25778.0,25777.0,0.193]
[1694052376350,3.30816574,25778.0,25777.0,0.193]
[1694052376562,3.30780574,25778.0,25777.0,0.193]
[1694052376773,3.30714574,25778.0,25777.0,0.193]
[1694052376986,3.30702574,25778.0,25777.0,0.193]
[1694052377213,4.85495819,25778.0,25777.0,0.193]
[1694052377429,4.55942074,25778.0,25777.0,0.193]
[1694052377649,4.56872074,25778.0,25777.0,0.193]
[1694052377867,4.56836074,25778.0,25777.0,0.193]
[1694052378081,4.54436074,25778.0,25777.0,0.191]
[1694052378298,4.51964074,25778.0,25777.0,0.1699545]
[1694052378501,0.02,25775.0,25770.0,0.004018]
[1694052378709,0.30692387,25771.0,25770.0,0.004018]
[1694052378917,2.55131811,25771.0,25770.0,0.004018]
[1694052379123,2.51452187,25771.0,25770.0,0.004018]
[1694052379325,2.51452187,25771.0,25770.0,0.194018]
[1694052379740,2.6541962,25771.0,25770.0,0.194018]
[1694052380554,2.6541962,25771.0,25770.0,0.004018]
[1694052380785,2.48587233,25771.0,25770.0,0.004018]
[1694052381574,2.50387233,25771.0,25770.0,0.004018]
[1694052381743,2.88404823,25771.0,25770.0,0.004018]
[1694052381953,3.3912935,25771.0,25770.0,0.004018]
[1694052383168,3.32475917,25771.0,25770.0,0.004018]
[1694052383408,3.65780498,25771.0,25770.0,0.004018]
[1694052383643,3.96626498,25771.0,25770.0,0.004018]
[1694052383907,3.68275917,25771.0,25770.0,0.004018]
[1694052384143,3.66505917,25771.0,25770.0,0.004018]
[1694052384391,3.68917917,25771.0,25770.0,0.004018]
[1694052384629,3.71100551,25771.0,25770.0,0.004018]
[1694052384876,3.71088551,25771.0,25770.0,0.004018]
[1694052385104,3.68658551,25771.0,25770.0,0.004018]
[1694052385338,3.71082551,25771.0,25770.0,0.004018]
[1694052385555,3.71058551,25771.0,25770.0,0.004018]
[1694052385841,3.94347404,25771.0,25770.0,0.004018]
[1694052386084,3.96777404,25771.0,25770.0,0.004018]
[1694052386310,3.96687404,25771.0,25770.0,0.004018]
[1694052386550,3.96789404,25771.0,25770.0,0.004018]
[1694052386842,3.96813404,25771.0,25770.0,0.004018]
[1694052387106,3.96825404,25771.0,25770.0,0.004018]
[1694052387343,4.15419938,25771.0,25770.0,0.004018]
[1694052387555,4.15473938,25771.0,25770.0,0.004018]
[1694052387777,3.92329085,25771.0,25770.0,0.004018]
[1694052388145,3.89929085,25771.0,25770.0,0.004018]
[1694052388350,3.92653085,25771.0,25770.0,0.004018]
[1694052388554,3.92647085,25771.0,25770.0,0.004018]
[1694052388748,3.85606804,25771.0,25770.0,0.004018]
[1694052389111,3.85678804,25771.0,25770.0,0.004018]
[1694052389322,3.85690804,25771.0,25770.0,0.004018]
[1694052389530,3.85750804,25771.0,25770.0,0.004018]
[1694052389741,3.88690804,25771.0,25770.0,0.004018]
[1694052389949,3.98242537,25771.0,25770.0,0.004018]
[1694052390159,3.98722537,25771.0,25770.0,0.014018]
[1694052390366,3.96538537,25771.0,25770.0,0.014018]
[1694052390567,3.99016537,25771.0,25770.0,0.014018]
[1694052390783,3.85518284,25771.0,25770.0,0.014018]
[1694052390958,3.85512284,25771.0,25770.0,0.014018]
[1694052391205,3.85404284,25771.0,25770.0,0.014018]
[1694052391424,3.85428284,25771.0,25770.0,0.014018]
[1694052391625,3.85770284,25771.0,25770.0,0.014018]
[1694052391840,3.85824284,25771.0,25770.0,0.014018]
[1694052392044,3.85734284,25771.0,25770.0,0.014018]
[1694052392253,3.85800284,25771.0,25770.0,0.014018]
[1694052392538,3.85782284,25771.0,25770.0,0.014018]
[1694052392745,3.76488551,25771.0,25770.0,0.014018]
[1694052392961,3.77250551,25771.0,25770.0,0.014018]
[1694052393185,3.77274551,25771.0,25770.0,0.014018]
[1694052393410,3.77376551,25771.0,25770.0,0.014018]
[1694052393626,3.77196551,25771.0,25770.0,0.014018]
[1694052393843,3.77184551,25771.0,25770.0,0.014018]
[1694052394048,3.77172551,25771.0,25770.0,0.014018]
[1694052394254,3.77160551,25771.0,25770.0,0.014018]
[1694052394467,3.77004551,25771.0,25770.0,0.014018]
[1694052394726,3.83628551,25771.0,25770.0,0.014018]
[1694052394952,4.09362284,25771.0,25770.0,0.014018]
[1694052395189,4.23606697,25771.0,25770.0,0.014018]
[1694052395417,0.02,25769.0,25766.0,0.1]
[1694052395696,0.58724527,25767.0,25766.0,0.1]
[1694052395972,2.16261727,25767.0,25766.0,0.1]
[1694052396188,2.59041727,25767.0,25766.0,0.1]
[1694052396430,3.36384327,25767.0,25766.0,0.1]
[1694052396671,3.36354327,25767.0,25766.0,0.1]
[1694052396924,3.75102854,25767.0,25766.0,0.1]
[1694052397164,3.75216854,25767.0,25766.0,0.1]
[1694052397641,3.75204854,25767.0,25766.0,0.1]
[1694052397875,3.74508854,25767.0,25766.0,0.1]
[1694052398135,3.73434854,25767.0,25766.0,0.1]
[1694052398383,3.72834854,25767.0,25766.0,0.1]
[1694052398588,3.75240854,25767.0,25766.0,0.1]
[1694052398916,3.77514854,25767.0,25766.0,0.1]
[1694052399193,3.77496854,25767.0,25766.0,0.1]
[1694052399420,3.77304854,25767.0,25766.0,0.1]
[1694052399744,3.81391385,25767.0,25766.0,0.1]
[1694052399985,3.81547385,25767.0,25766.0,0.1]
[1694052400240,3.81553385,25767.0,25766.0,0.1]
[1694052400537,3.81637385,25767.0,25766.0,0.1]
[1694052400763,3.81661385,25767.0,25766.0,0.11]
[1694052401001,3.81655385,25767.0,25766.0,0.11]
[1694052401242,3.81619385,25767.0,25766.0,0.11]
[1694052401469,3.81673385,25767.0,25766.0,0.11]
[1694052401706,3.81595385,25767.0,25766.0,0.11]
[1694052401948,3.81541385,25767.0,25766.0,0.11]
[1694052402437,3.81607385,25767.0,25766.0,0.1]
[1694052402935,3.81667385,25767.0,25766.0,0.1]
[1694052403174,3.81673385,25767.0,25766.0,0.1]
[1694052403391,3.81661385,25767.0,25766.0,0.1]
[1694052403631,3.81535385,25767.0,25766.0,0.1]
[1694052403894,3.80953385,25767.0,25766.0,0.1]
[1694052404133,3.80095385,25767.0,25766.0,0.1]
[1694052404346,3.79837385,25767.0,25766.0,0.1]
[1694052404539,3.80269385,25767.0,25766.0,0.1]
[1694052404752,3.80341385,25767.0,25766.0,0.1]
[1694052404989,3.80395385,25767.0,25766.0,0.1]
[1694052405198,3.80437385,25767.0,25766.0,0.1]
[1694052405418,3.80563385,25767.0,25766.0,0.1]
[1694052405623,3.80605385,25767.0,25766.0,0.1]
[1694052405838,3.80659385,25767.0,25766.0,0.1]
[1694052406043,3.80671385,25767.0,25766.0,0.1]
[1694052406260,3.80689385,25767.0,25766.0,0.1]
[1694052406471,3.80707385,25767.0,25766.0,0.1]
[1694052406690,3.80779385,25767.0,25766.0,0.1]
[1694052406904,3.79343385,25767.0,25766.0,0.1]
[1694052407112,3.79625385,25767.0,25766.0,0.1]
[1694052407330,3.79619385,25767.0,25766.0,0.1]
[1694052407551,3.79595385,25767.0,25766.0,0.1]
[1694052407778,3.79751385,25767.0,25766.0,0.1]
[1694052407988,3.79733385,25767.0,25766.0,0.1]
[1694052408199,3.79709385,25767.0,25766.0,0.1]
[1694052408412,3.79733385,25767.0,25766.0,0.1]
[1694052408632,3.79739385,25767.0,25766.0,0.1]
[1694052408854,3.79745385,25767.0,25766.0,0.1]
[1694052409077,3.79763385,25767.0,25766.0,0.1]
[1694052409301,3.79775385,25767.0,25766.0,0.1]
[1694052409533,3.81671385,25767.0,25766.0,0.1]
[1694052409735,3.81497385,25767.0,25766.0,0.1]
[1694052409987,3.80741385,25767.0,25766.0,0.1]
[1694052410207,3.80609385,25767.0,25766.0,0.1]
[1694052410421,3.80615385,25767.0,25766.0,0.1]
[1694052410625,3.80591385,25767.0,25766.0,0.1]
[1694052410830,3.80771385,25767.0,25766.0,0.1]
[1694052411040,3.80705385,25767.0,25766.0,0.1]
[1694052411297,3.80357385,25767.0,25766.0,0.1]
[1694052411507,3.79631385,25767.0,25766.0,0.1]
[1694052411728,3.79487385,25767.0,25766.0,0.1]
[1694052411935,3.79655385,25767.0,25766.0,0.1]
[1694052412140,3.79661385,25767.0,25766.0,0.1]
[1694052412352,3.80009385,25767.0,25766.0,0.1]
[1694052412576,3.79937385,25767.0,25766.0,0.1]
[1694052412786,3.79577385,25767.0,25766.0,0.1]
[1694052412999,3.79631385,25767.0,25766.0,0.1]
[1694052413208,3.79643385,25767.0,25766.0,0.1]
[1694052413415,3.79655385,25767.0,25766.0,0.1]
[1694052413626,3.79667385,25767.0,25766.0,0.1]
[1694052413838,3.80063385,25767.0,25766.0,0.1]
[1694052414274,3.80105385,25767.0,25766.0,0.1]
[1694052414487,3.79673385,25767.0,25766.0,0.1]
[1694052414712,3.79703385,25767.0,25766.0,0.1]
[1694052414926,3.79697385,25767.0,25766.0,0.1]
[1694052415140,3.79727385,25767.0,25766.0,0.1]
[1694052415283,3.79721385,25767.0,25766.0,0.1]
[1694052415498,3.79685385,25767.0,25766.0,0.1]
[1694052415783,3.79697385,25767.0,25766.0,0.1]
[1694052415997,3.79691385,25767.0,25766.0,0.1]
[1694052416212,3.79703385,25767.0,25766.0,0.1]
[1694052416450,3.79997385,25767.0,25766.0,0.1]
[1694052416638,3.80081385,25767.0,25766.0,0.1]
[1694052416852,3.79943385,25767.0,25766.0,0.1]
[1694052417063,3.80093385,25767.0,25766.0,0.1]
[1694052417274,3.80087385,25767.0,25766.0,0.1]
[1694052417508,3.80081385,25767.0,25766.0,0.1]
[1694052417782,3.79775385,25767.0,25766.0,0.1]
[1694052417996,3.79715385,25767.0,25766.0,0.1]
[1694052418206,3.79721385,25767.0,25766.0,0.1]
[1694052418406,3.79727385,25767.0,25766.0,0.1]
[1694052418607,3.79745385,25767.0,25766.0,0.1]
[1694052418845,3.79829385,25767.0,25766.0,0.1]
[1694052419056,3.80129385,25767.0,25766.0,0.1]
[1694052419274,3.80135385,25767.0,25766.0,0.1]
[1694052419461,3.80093385,25767.0,25766.0,0.1]
[1694052419610,3.80147385,25767.0,25766.0,0.1]
[1694052419824,3.80195385,25767.0,25766.0,0.1]
[1694052420030,3.80189385,25767.0,25766.0,0.1]
[1694052420237,3.80021385,25767.0,25766.0,0.1]
[1694052420439,3.80153385,25767.0,25766.0,0.1]
[1694052420809,3.80159385,25767.0,25766.0,0.1]
[1694052421335,3.80171385,25767.0,25766.0,0.1]
[1694052421936,3.80183385,25767.0,25766.0,0.095]
[1694052422138,3.80153385,25767.0,25766.0,0.095]
[1694052422348,3.80171385,25767.0,25766.0,0.095]
[1694052422558,3.80405385,25767.0,25766.0,0.095]
[1694052422742,3.80597385,25767.0,25766.0,0.095]
[1694052422959,3.80603385,25767.0,25766.0,0.095]
[1694052423166,3.80609385,25767.0,25766.0,0.095]
[1694052423599,3.80579385,25767.0,25766.0,0.095]
[1694052423822,3.80591385,25767.0,25766.0,0.095]
[1694052424075,3.80489385,25767.0,25766.0,0.095]
[1694052424262,3.80633385,25767.0,25766.0,0.095]
[1694052424712,3.80627385,25767.0,25766.0,0.095]
[1694052424958,3.80549385,25767.0,25766.0,0.095]
[1694052425162,3.80501385,25767.0,25766.0,0.095]
[1694052425405,3.80027385,25767.0,25766.0,0.095]
[1694052425611,3.80237385,25767.0,25766.0,0.095]
[1694052425833,3.80087385,25767.0,25766.0,0.095]
[1694052426039,3.80093385,25767.0,25766.0,0.095]
[1694052426250,3.79997385,25767.0,25766.0,0.095]
[1694052426464,3.80081385,25767.0,25766.0,0.095]
[1694052426883,3.80069385,25767.0,25766.0,0.095]
[1694052427106,3.79979385,25767.0,25766.0,0.095]
[1694052427280,3.80063385,25767.0,25766.0,0.095]
[1694052427494,3.80081385,25767.0,25766.0,0.095]
[1694052427702,3.80363385,25767.0,25766.0,0.095]
[1694052428132,3.80375385,25767.0,25766.0,0.095]
[1694052428354,3.80381385,25767.0,25766.0,0.095]
[1694052428562,3.80375385,25767.0,25766.0,0.095]
[1694052428774,3.89676391,25767.0,25766.0,0.095]
[1694052428987,3.89706391,25767.0,25766.0,0.095]
[1694052429419,3.89712391,25767.0,25766.0,0.095]
[1694052429638,3.89880391,25767.0,25766.0,0.095]
[1694052429849,3.95979334,25767.0,25766.0,0.095]
[1694052430063,3.95973334,25767.0,25766.0,0.095]
[1694052430276,3.95985334,25767.0,25766.0,0.095]
[1694052430493,3.95955334,25767.0,25766.0,0.095]
[1694052430706,3.96087334,25767.0,25766.0,0.095]
[1694052430916,4.10005587,25767.0,25766.0,0.095]
[1694052431129,4.10011587,25767.0,25766.0,0.095]
[1694052431343,4.10017587,25767.0,25766.0,0.095]
[1694052431581,4.10095587,25767.0,25766.0,0.095]
[1694052431769,4.00812581,25767.0,25766.0,0.095]
[1694052432024,4.00896581,25767.0,25766.0,0.095]
[1694052432252,4.00908581,25767.0,25766.0,0.095]
[1694052432470,4.01040581,25767.0,25766.0,0.095]
[1694052432679,4.01094581,25767.0,25766.0,0.095]
[1694052432928,4.19665115,25767.0,25766.0,0.095]
[1694052433149,4.19755115,25767.0,25766.0,0.095]
[1694052433367,4.20301115,25767.0,25766.0,0.095]
[1694052433579,4.20493115,25767.0,25766.0,0.095]
[1694052433791,4.20559115,25767.0,25766.0,0.095]
[1694052433994,4.06568862,25767.0,25766.0,0.095]
[1694052434206,4.06394862,25767.0,25766.0,0.095]
[1694052434418,4.06406862,25767.0,25766.0,0.095]
[1694052434599,4.06352862,25767.0,25766.0,0.095]
[1694052434812,4.11005181,25767.0,25766.0,0.095]
[1694052435227,4.10981181,25767.0,25766.0,0.095]
[1694052435915,4.10975181,25767.0,25766.0,0.095]
[1694052436172,4.10945181,25767.0,25766.0,0.095]
[1694052436399,4.10927181,25767.0,25766.0,0.095]
[1694052436648,4.10915181,25767.0,25766.0,0.095]
[1694052436881,3.87614328,25767.0,25766.0,0.095]
[1694052437125,3.87656328,25767.0,25766.0,0.095]
[1694052437602,3.87650328,25767.0,25766.0,0.095]
[1694052437832,3.87656328,25767.0,25766.0,0.095]
[1694052438086,3.87644328,25767.0,25766.0,0.095]
[1694052438300,3.87698328,25767.0,25766.0,0.095]
[1694052438522,3.88028328,25767.0,25766.0,0.095]
[1694052438739,3.88088328,25767.0,25766.0,0.095]
[1694052438968,4.16120909,25767.0,25766.0,0.095]
[1694052439204,4.16108909,25767.0,25766.0,0.095]
[1694052439494,4.29662909,25767.0,25766.0,0.095]
[1694052439726,4.16432909,25767.0,25766.0,0.095]
[1694052439962,4.29650909,25767.0,25766.0,0.095]
[1694052440207,4.29602909,25767.0,25766.0,0.095]
[1694052440441,4.29518909,25767.0,25766.0,0.095]
[1694052440664,4.16444909,25767.0,25766.0,0.095]
[1694052440900,3.88352328,25767.0,25766.0,0.095]
[1694052441144,3.87992328,25767.0,25766.0,0.095]
[1694052441388,3.87986328,25767.0,25766.0,0.095]
[1694052441624,3.87992328,25767.0,25766.0,0.095]
[1694052441824,3.87896328,25767.0,25766.0,0.095]
[1694052442061,3.87848328,25767.0,25766.0,0.095]
[1694052442295,3.87824328,25767.0,25766.0,0.095]
[1694052442577,3.57812328,25767.0,25766.0,0.095]
[1694052442817,3.87758328,25767.0,25766.0,0.095]
[1694052443041,3.87734328,25767.0,25766.0,0.095]
[1694052443279,3.87722328,25767.0,25766.0,0.095]
[1694052443510,3.87812328,25767.0,25766.0,0.095]
[1694052443775,3.87806328,25767.0,25766.0,0.095]
[1694052444205,3.87686328,25767.0,25766.0,0.095]
[1694052444427,3.87188328,25767.0,25766.0,0.095]
[1694052444666,3.87080328,25767.0,25766.0,0.095]
[1694052444893,3.87098328,25767.0,25766.0,0.095]
[1694052445150,3.87236328,25767.0,25766.0,0.095]
[1694052445367,3.87716328,25767.0,25766.0,0.095]
[1694052445579,3.87758328,25767.0,25766.0,0.095]
[1694052445793,3.87746328,25767.0,25766.0,0.095]
[1694052446024,3.57776328,25767.0,25766.0,0.095]
[1694052446257,3.87764328,25767.0,25766.0,0.095]
[1694052446486,3.87770328,25767.0,25766.0,0.095]
[1694052446687,3.87776328,25767.0,25766.0,0.095]